bitfinex/quotes_SOLUSD_20260203
["timestamp","ask_amount","ask_price","bid_price","bid_amount"]
[1770146468784,15.20777504,99.88,99.829,4.38595214]
[1770146469073,4.27527085,99.941,99.81,15.20777504]
[1770146469074,4.34247968,99.87,99.81,15.20777504]
[1770146469254,15.20777504,99.85,99.811,4.38595214]
[1770146469455,15.20777504,99.84,99.794,4.38595214]
[1770146469677,15.20777504,99.81,99.777,4.38595214]
[1770146469858,15.20777504,99.82,99.777,4.38595214]
[1770146470056,15.20777504,99.83,99.78,15.20777504]
[1770146470261,4.34247968,99.847,99.78,15.20777504]
[1770146470470,26.78,99.878,99.752,4.38595214]
[1770146470471,15.20777504,99.8,99.752,4.38595214]
[1770146470782,15.20777504,99.8,99.69,40.12418489]
[1770146470783,15.20777504,99.77,99.721,10.02797805]
[1770146470978,15.20777504,99.77,99.72,15.20777504]
[1770146471279,15.20777504,99.73,99.692,4.38595214]
[1770146471478,15.20777504,99.74,99.692,14.41681181]
[1770146471689,50.1741291,99.837,99.668,4.27527085]
[1770146471690,15.20777504,99.76,99.71,15.20777504]
[1770146471889,4.34247968,99.77,99.701,4.38595214]
[1770146472104,15.20777504,99.71,99.656,4.38595214]
[1770146472380,15.20777504,99.71,99.622,50.69747571]
[1770146472381,4.34247968,99.735,99.641,4.38595214]
[1770146472558,4.34247968,99.735,99.643,4.38595214]
[1770146472757,15.20777504,99.7,99.643,4.38595214]
[1770146472959,15.20777504,99.69,99.643,4.38595214]
[1770146473177,15.20777504,99.7,99.643,4.38595214]
[1770146473380,15.20777504,99.68,99.643,4.38595214]
[1770146473560,15.20777504,99.67,99.625,4.38595214]
[1770146473976,4.34247968,99.683,99.61,15.20777504]
[1770146474186,15.20777504,99.65,99.606,4.38595214]
[1770146474362,15.20777504,99.65,99.588,5.24567006]
[1770146474363,15.20777504,99.62,99.588,5.24567006]
[1770146474556,15.20777504,99.62,99.479,40.209297]
[1770146474557,15.20777504,99.64,99.59,15.20777504]
[1770146474772,15.20777504,99.64,99.591,4.38595214]
[1770146474982,15.20777504,99.64,99.556,27.86]
[1770146474983,15.20777504,99.62,99.569,4.38595214]
[1770146475167,4.34247968,99.646,99.569,4.38595214]
[1770146475168,15.20777504,99.61,99.569,4.38595214]
[1770146475491,50.17712525,99.647,99.57,15.20777504]
[1770146475492,15.20777504,99.62,99.57,15.20777504]
[1770146475786,15.20777504,99.61,99.566,4.38595214]
[1770146475961,35.12398767,99.647,99.546,4.38595214]
[1770146475962,15.20777504,99.59,99.546,4.38595214]
[1770146476685,4.34247968,99.602,99.54,15.20777504]
[1770146476863,10.03985823,99.603,99.541,4.38595214]
[1770146477061,15.20777504,99.57,99.52,4.38595214]
[1770146477357,4.34247968,99.602,99.531,4.38595214]
[1770146477587,4.34247968,99.602,99.54,15.20777504]
[1770146477788,15.20777504,99.59,99.54,19.59372718]
[1770146477983,15.20777504,99.58,99.54,4.38595214]
[1770146478295,15.20777504,99.55,99.54,4.38595214]
[1770146478494,80.31197526,99.612,99.54,4.38595214]
[1770146478495,26.84,99.595,99.54,4.38595214]
[1770146478684,40.14253949,99.645,99.54,4.38595214]
[1770146478877,15.20777504,99.6,99.55,15.20777504]
[1770146479193,15.20777504,99.57,99.54,4.38595214]
[1770146479392,15.20777504,99.56,99.54,4.38595214]
[1770146479887,4.34247968,99.615,99.541,4.38595214]
[1770146480101,15.20777504,99.59,99.541,4.38595214]
[1770146480592,15.20777504,99.61,99.56,15.20777504]
[1770146480770,4.36038637,99.659,99.6,15.20777504]
[1770146480970,4.36038637,99.659,99.544,4.27527085]
[1770146480971,4.36038637,99.666,99.63,15.20777504]
[1770146481305,26.9,99.7,99.567,4.22189049]
[1770146481306,4.36038637,99.639,99.567,4.22189049]
[1770146481472,4.36038637,99.639,99.51,40.39667459]
[1770146481473,4.36038637,99.639,99.571,4.22189049]
[1770146481792,15.20777504,99.63,99.58,15.20777504]
[1770146481981,15.20777504,99.6,99.558,4.22189049]
[1770146482183,15.20777504,99.6,99.553,4.22189049]
[1770146482375,15.20777504,99.56,99.514,4.22189049]
[1770146482574,15.20777504,99.56,99.521,4.22189049]
[1770146482892,15.20777504,99.59,99.54,15.20777504]
[1770146483096,10.03623079,99.639,99.565,4.22189049]
[1770146483277,15.20777504,99.62,99.57,15.20777504]
[1770146483474,4.36038637,99.629,99.565,4.22189049]
[1770146483475,4.36038637,99.629,99.58,15.20777504]
[1770146483802,15.20777504,99.61,99.565,4.22189049]
[1770146483998,10.03623079,99.639,99.55,15.20777504]
[1770146483999,15.20777504,99.6,99.55,15.20777504]
[1770146484195,15.20777504,99.6,99.551,4.22189049]
[1770146484371,15.20777504,99.6,99.553,4.22189049]
[1770146484571,15.20777504,99.6,99.505,1.00497462]
[1770146484572,15.20777504,99.59,99.54,15.20777504]
[1770146484981,4.36038637,99.673,99.585,4.22189049]
[1770146485177,15.20777504,99.66,99.613,4.22189049]
[1770146485392,15.20777504,99.64,99.596,4.22189049]
[1770146485588,200.91820025,99.715,99.551,10.04503236]
[1770146485589,26.96,99.688,99.601,4.22189049]
[1770146485788,15.20777504,99.61,99.555,4.22189049]
[1770146485982,15.20777504,99.63,99.58,15.20777504]
[1770146486296,15.20777504,99.63,99.528,40.18947327]
[1770146486297,15.20777504,99.59,99.495,0.3036362]
[1770146486499,15.20777504,99.54,99.495,4.52552669]
[1770146486699,15.20777504,99.55,99.495,4.52552669]
[1770146486884,27.06,99.586,99.521,4.22189049]
[1770146487087,15.20777504,99.57,99.521,4.22189049]
[1770146487390,15.20777504,99.59,99.561,4.22189049]
[1770146487596,15.20777504,99.57,99.501,4.22189049]
[1770146487777,50.52153739,99.644,99.481,25.13025263]
[1770146487778,10.89005645,99.54,99.498,4.22189049]
[1770146487979,15.20777504,99.53,99.498,4.22189049]
[1770146488196,4.36038637,99.581,99.498,4.22189049]
[1770146488402,4.36038637,99.581,99.5,0.10533922]
[1770146488697,15.20777504,99.59,99.524,4.27527085]
[1770146489000,15.20777504,99.59,99.499,125.62940329]
[1770146489001,4.36038637,99.637,99.551,5.50302345]
[1770146489197,15.20777504,99.59,99.538,4.27527085]
[1770146489385,15.20777504,99.6,99.539,0.14216157]
[1770146489702,4.36038637,99.657,99.561,0.14216157]
[1770146489999,15.20777504,99.61,99.563,0.14216157]
[1770146490304,10.03451874,99.656,99.545,0.14216157]
[1770146490305,4.36038637,99.619,99.545,0.14216157]
[1770146490503,15.20777504,99.59,99.546,10.04560705]
[1770146490707,4.36038637,99.619,99.528,4.27527085]
[1770146490889,40.13721508,99.659,99.528,4.27527085]
[1770146490890,15.20777504,99.57,99.546,10.04560705]
[1770146491091,15.20777504,99.57,99.528,4.27527085]
[1770146491288,15.20777504,99.6,99.546,10.04560705]
[1770146491604,15.20777504,99.59,99.546,10.04560705]
[1770146491798,15.20777504,99.56,99.531,10.04709934]
[1770146491981,4.36038637,99.63,99.54,10.04620611]
[1770146492180,15.20777504,99.57,99.525,4.27527085]
[1770146492483,15.20777504,99.57,99.504,5.36086188]
[1770146492484,15.20777504,99.57,99.511,9.63613273]
[1770146492693,15.20777504,99.57,99.512,0.14216157]
[1770146492894,15.20777504,99.55,99.507,25.12366732]
[1770146493104,27.12,99.631,99.507,25.12366732]
[1770146493105,4.36038637,99.603,99.511,9.63613273]
[1770146493281,15.20777504,99.59,99.524,0.14216157]
[1770146493480,15.20777504,99.56,99.524,0.14216157]
[1770146493686,4.36038637,99.643,99.551,0.14216157]
[1770146493980,4.36038637,99.643,99.527,4.27527085]
[1770146493981,15.20777504,99.61,99.541,5.50302345]
[1770146494195,15.20777504,99.59,99.541,0.14216157]
[1770146494380,15.33890672,99.57,99.521,0.14216157]
[1770146494698,4.36038637,99.61,99.534,4.41743242]
[1770146494888,15.33890672,99.6,99.534,4.41743242]
[1770146495289,15.33890672,99.58,99.534,0.14216157]
[1770146495612,15.33890672,99.63,99.561,0.14216157]
[1770146495903,15.33890672,99.63,99.522,165.79248807]
[1770146495904,15.33890672,99.65,99.584,0.14216157]
[1770146496084,15.33890672,99.65,99.585,1.00416729]
[1770146496285,15.33890672,99.64,99.586,1.14631878]
[1770146496503,4.36038637,99.654,99.581,0.14216157]
[1770146496700,15.33890672,99.64,99.587,10.04147127]
[1770146497001,4.36038637,99.638,99.587,10.04147127]
[1770146497200,15.33890672,99.63,99.587,10.04147127]
[1770146497509,4.36038637,99.658,99.58,5.24633284]
[1770146497711,15.33890672,99.65,99.591,0.14216157]
[1770146497879,50.29216478,99.747,99.587,10.04147127]
[1770146497880,15.33890672,99.67,99.61,15.33890672]
[1770146498209,4.36038637,99.669,99.605,0.14216157]
[1770146498511,4.36038637,99.669,99.606,10.03955585]
[1770146498512,15.33890672,99.65,99.606,10.03955585]
[1770146498902,15.33890672,99.65,99.591,25.10251539]
[1770146498903,15.33890672,99.63,99.6,10.04012487]
[1770146499082,15.33890672,99.63,99.599,10.04019357]
[1770146499299,15.33890672,99.64,99.584,0.14216157]
[1770146499590,4.36038637,99.683,99.611,5.50302345]
[1770146499783,15.33890672,99.7,99.644,0.14216157]
[1770146499979,15.33890672,99.72,99.651,5.50302345]
[1770146500182,15.33890672,99.71,99.651,0.14216157]
[1770146500402,4.36038637,99.727,99.651,0.14216157]
[1770146500403,15.33890672,99.7,99.651,0.14216157]
[1770146500598,15.33890672,99.7,99.652,35.12222533]
[1770146500807,15.33890672,99.71,99.653,0.14216157]
[1770146501680,27.1,99.757,99.652,35.12222533]
[1770146501681,15.33890672,99.7,99.652,10.03492152]
[1770146502112,4.36038637,99.711,99.652,10.03492152]
[1770146502402,40.08936016,99.778,99.638,25.0906616]
[1770146502403,15.33890672,99.68,99.638,25.0906616]
[1770146502578,15.33890672,99.69,99.639,0.14216157]
[1770146502783,15.33890672,99.68,99.638,25.0906616]
[1770146503085,4.36038637,99.67,99.629,10.03723815]
[1770146503406,4.36038637,99.687,99.631,5.36086188]
[1770146503583,4.36038637,99.687,99.63,0.14216157]
[1770146503584,15.33890672,99.67,99.63,0.14216157]
[1770146503785,15.33890672,99.67,99.629,35.13033353]
[1770146503982,15.33890672,99.67,99.629,10.03723815]
[1770146504406,15.33890672,99.68,99.629,10.03723815]
[1770146504601,4.36038637,99.687,99.629,10.03723815]
[1770146504602,15.33890672,99.67,99.629,10.03723815]
[1770146504905,15.33890672,99.65,99.619,10.03824571]
[1770146505103,15.33890672,99.64,99.614,10.03874901]
[1770146505283,15.33890672,99.64,99.618,10.03824746]
[1770146505490,4.36038637,99.698,99.618,35.13411366]
[1770146505814,4.36038637,99.689,99.631,0.14216157]
[1770146505990,15.33890672,99.66,99.618,10.03824746]
[1770146506185,15.33890672,99.67,99.619,0.14216157]
[1770146506797,15.33890672,99.66,99.62,10.03814495]
[1770146507184,15.33890672,99.66,99.62,35.13350732]
[1770146507409,15.33890672,99.65,99.613,10.03876174]
[1770146507612,15.33890672,99.71,99.611,10.03900354]
[1770146507613,15.33890672,99.63,99.611,10.03900354]
[1770146507815,4.36038637,99.708,99.58,27.9]
[1770146508016,60.09624017,99.84,99.641,0.14216157]
[1770146508017,4.36038637,99.699,99.641,0.14216157]
[1770146508592,4.36038637,99.699,99.634,0.14216157]
[1770146508818,15.33890672,99.69,99.636,0.14216157]
[1770146509003,15.33890672,99.68,99.638,4.27527085]
[1770146509489,27.02,99.753,99.63,10.03707239]
[1770146509490,4.36038637,99.679,99.63,10.03707239]
[1770146509693,15.33890672,99.66,99.621,10.03794885]
[1770146509894,10.03029148,99.698,99.587,27.9]
[1770146509895,15.33890672,99.63,99.587,27.9]
[1770146510108,15.33890672,99.62,99.588,10.04137044]
[1770146510394,15.33890672,99.67,99.611,4.05911851]
[1770146510593,15.33890672,99.66,99.611,4.05911851]
[1770146510790,15.33890672,99.64,99.598,0.14216157]
[1770146511008,15.33890672,99.64,99.597,4.27527085]
[1770146511009,15.33890672,99.63,99.597,4.27527085]
[1770146511219,15.33890672,99.64,99.597,4.27527085]
[1770146511534,15.33890672,99.71,99.594,35.14267926]
[1770146511535,15.33890672,99.63,99.594,10.0407655]
[1770146511899,15.33890672,99.71,99.594,10.0407655]
[1770146511900,15.33890672,99.62,99.594,10.0407655]
[1770146512114,4.27527085,99.73,99.597,4.27527085]
[1770146512331,60.09624017,99.84,99.633,3.89284155]
[1770146512332,4.00029903,99.699,99.633,3.89284155]
[1770146512491,15.33890672,99.69,99.634,0.14216157]
[1770146512693,15.33890672,99.67,99.624,10.0377419]
[1770146512897,4.00029903,99.683,99.627,4.27527085]
[1770146513116,15.33890672,99.67,99.627,4.27527085]
[1770146513607,15.33890672,99.66,99.627,4.27527085]
[1770146513805,15.33890672,99.67,99.627,4.27527085]
[1770146514011,15.33890672,99.66,99.627,4.27527085]
[1770146514312,26.98,99.735,99.627,4.27527085]
[1770146514313,3.87643307,99.723,99.641,0.14216157]
[1770146514523,3.87643307,99.699,99.644,0.14216157]
[1770146514730,3.87643307,99.699,99.645,10.03562647]
[1770146514903,15.33890672,99.69,99.645,10.03562647]
[1770146515110,15.33890672,99.69,99.648,4.27527085]
[1770146515510,15.33890672,99.68,99.645,10.03562647]
[1770146515710,3.87643307,99.684,99.645,10.03562647]
[1770146515908,3.87643307,99.739,99.651,3.83280019]
[1770146516111,15.33890672,99.7,99.651,3.83280019]
[1770146516322,15.33890672,99.7,99.64,15.33890672]
[1770146516323,15.33890672,99.68,99.636,10.03643341]
[1770146516507,15.33890672,99.68,99.645,10.03562647]
[1770146516711,3.87643307,99.723,99.655,10.03461943]
[1770146516912,15.33890672,99.71,99.655,35.12116802]
[1770146517229,15.33890672,99.7,99.655,10.03461943]
[1770146517403,15.33890672,99.7,99.64,15.33890672]
[1770146517404,15.33890672,99.69,99.637,3.83280019]
[1770146517611,15.33890672,99.69,99.655,10.03461943]
[1770146517805,3.87643307,99.695,99.645,25.0889226]
[1770146518004,15.33890672,99.69,99.655,10.03461943]
[1770146518428,3.87643307,99.695,99.655,10.03461943]
[1770146518738,25.06093708,99.757,99.655,10.03461943]
[1770146518739,3.87643307,99.729,99.663,4.27527085]
[1770146518913,3.87643307,99.729,99.67,15.33890672]
[1770146519105,26.92,99.783,99.664,35.11799646]
[1770146519106,15.33890672,99.78,99.714,3.97496176]
[1770146519427,15.33890672,99.75,99.714,3.83280019]
[1770146519627,15.33890672,99.74,99.695,3.83280019]
[1770146520514,15.33890672,99.76,99.695,3.83280019]
[1770146520705,0.1,99.82,99.731,3.83280019]
[1770146520706,15.33890672,99.79,99.731,3.83280019]
[1770146520905,15.33890672,99.79,99.722,0.14216157]
[1770146520906,15.33890672,99.76,99.727,10.02735947]
[1770146521218,15.33890672,99.77,99.732,10.02687201]
[1770146521608,15.33890672,99.75,99.7,3.83280019]
[1770146521802,0.1,99.82,99.733,3.97496176]
[1770146521803,15.33890672,99.77,99.733,3.97496176]
[1770146522024,0.1,99.82,99.741,3.97496176]
[1770146522025,3.87643307,99.808,99.741,3.97496176]
[1770146522325,15.33890672,99.76,99.732,10.02687201]
[1770146522528,15.33890672,99.74,99.704,10.02968347]
[1770146522824,3.87643307,99.76,99.701,3.83280019]
[1770146522825,15.33890672,99.75,99.701,3.83280019]
[1770146523030,15.33890672,99.75,99.69,15.33890672]
[1770146523031,3.87643307,99.801,99.735,0.14216157]
[1770146523332,0.1,99.82,99.761,3.97496176]
[1770146523540,3.87643307,99.819,99.754,3.83280019]
[1770146523724,15.33890672,99.81,99.756,3.83280019]
[1770146523917,3.87643307,99.819,99.759,0.14216157]
[1770146524117,15.43890672,99.82,99.75,20.57690298]
[1770146524118,15.33890672,99.78,99.75,5.23799626]
[1770146524634,15.33890672,99.77,99.75,5.23799626]
[1770146524813,0.1,99.82,99.75,5.23799626]
[1770146524814,15.33890672,99.76,99.75,5.23799626]
[1770146525031,15.33890672,99.72,99.679,3.83280019]
[1770146525244,10.0241041,99.76,99.659,3.83280019]
[1770146525245,15.33890672,99.69,99.659,3.83280019]
[1770146525530,15.33890672,99.69,99.622,27.88]
[1770146525531,15.33890672,99.68,99.634,3.83280019]
[1770146525709,15.33890672,99.68,99.633,10.03683518]
[1770146525710,3.87643307,99.731,99.654,3.83280019]
[1770146525907,15.33890672,99.69,99.654,3.83280019]
[1770146526621,15.33890672,99.68,99.654,3.83280019]
[1770146526925,15.33890672,99.68,99.598,80.32229756]
[1770146526926,3.87643307,99.712,99.656,3.83280019]
[1770146527137,15.33890672,99.7,99.656,3.83280019]
[1770146527310,15.33890672,99.67,99.621,3.83280019]
[1770146527510,15.33890672,99.63,99.581,3.83280019]
[1770146527814,35.10114029,99.712,99.601,3.83280019]
[1770146527815,15.33890672,99.67,99.601,3.83280019]
[1770146528014,6.29329744,99.741,99.601,3.83280019]
[1770146528015,15.33890672,99.69,99.631,3.83280019]
[1770146528218,26.94,99.72,99.611,3.83280019]
[1770146528219,15.33890672,99.65,99.611,3.83280019]
[1770146528430,15.33890672,99.65,99.591,3.83280019]
[1770146528607,15.33890672,99.67,99.611,3.83280019]
[1770146528814,15.33890672,99.67,99.612,10.03895113]
[1770146529150,3.87643307,99.693,99.613,3.83280019]
[1770146529151,15.33890672,99.68,99.613,3.83280019]
[1770146529437,15.33890672,99.69,99.622,0.14216157]
[1770146529616,15.33890672,99.7,99.642,0.14216157]
[1770146529825,15.33890672,99.7,99.615,4.27527085]
[1770146529826,3.87643307,99.728,99.675,3.83280019]
[1770146530016,15.33890672,99.74,99.675,3.83280019]
[1770146530216,3.87643307,99.739,99.675,3.83280019]
[1770146530443,15.33890672,99.71,99.653,3.83280019]
[1770146530608,15.33890672,99.68,99.637,3.83280019]
[1770146530814,15.33890672,99.67,99.637,3.83280019]
[1770146531144,26.94,99.727,99.63,10.03704843]
[1770146531145,3.87643307,99.726,99.645,3.83280019]
[1770146531437,15.33890672,99.7,99.645,3.83280019]
[1770146531733,15.33890672,99.7,99.62,5.36086188]
[1770146531734,15.33890672,99.67,99.637,10.03638283]
[1770146531927,15.33890672,99.67,99.627,3.83280019]
[1770146532310,15.33890672,99.64,99.598,3.83280019]
[1770146532511,15.33890672,99.65,99.625,10.03763975]
[1770146532728,15.33890672,99.67,99.617,3.83280019]
[1770146532914,3.87643307,99.672,99.617,3.83280019]
[1770146533119,3.87643307,99.672,99.581,3.83280019]
[1770146533310,25.07401627,99.705,99.58,5.36086188]
[1770146533311,3.87643307,99.629,99.58,10.04210968]
[1770146533517,15.33890672,99.62,99.574,10.04274437]
[1770146533722,4.27527085,99.688,99.55,15.33890672]
[1770146533723,4.27527085,99.668,99.55,3.83280019]
[1770146533913,15.33890672,99.59,99.558,10.04436761]
[1770146534108,15.33890672,99.61,99.573,10.0428652]
[1770146534426,15.33890672,99.61,99.531,80.37684142]
[1770146534427,15.33890672,99.59,99.552,3.83280019]
[1770146534624,15.33890672,99.58,99.537,3.83280019]
[1770146534825,15.33890672,99.59,99.537,3.83280019]
[1770146535018,3.87643307,99.61,99.541,3.83280019]
[1770146535218,15.33890672,99.59,99.541,3.83280019]
[1770146535731,15.33890672,99.6,99.541,3.83280019]
[1770146536044,4.27527085,99.658,99.525,3.83280019]
[1770146536045,15.33890672,99.56,99.525,3.83280019]
[1770146536545,15.33890672,99.57,99.525,3.83280019]
[1770146536726,15.33890672,99.55,99.502,3.83280019]
[1770146536933,3.87643307,99.559,99.501,3.83280019]
[1770146537436,15.33890672,99.57,99.502,3.83280019]
[1770146537610,15.33890672,99.55,99.504,3.83280019]
[1770146537815,15.33890672,99.56,99.504,3.83280019]
[1770146538311,15.33890672,99.55,99.504,3.83280019]
[1770146538531,19.21533979,99.56,99.504,3.83280019]
[1770146538841,15.33890672,99.56,99.505,3.97496176]
[1770146539013,15.33890672,99.55,99.507,3.83280019]
[1770146540136,3.87643307,99.561,99.5,0.2]
[1770146540317,15.33890672,99.55,99.505,10.04968958]
[1770146540512,3.51502076,99.577,99.506,3.59949258]
[1770146540727,15.33890672,99.56,99.508,3.59949258]
[1770146540919,26.88,99.596,99.5,15.53890672]
[1770146540920,15.33890672,99.53,99.5,0.2]
[1770146541239,15.33890672,99.54,99.5,0.2]
[1770146541416,15.33890672,99.53,99.5,0.2]
[1770146541836,15.33890672,99.54,99.5,0.2]
[1770146542215,15.33890672,99.54,99.502,3.59949258]
[1770146542627,15.33890672,99.55,99.502,3.59949258]
[1770146543228,15.33890672,99.54,99.502,3.59949258]
[1770146543547,15.33890672,99.55,99.506,3.59949258]
[1770146543745,26.86,99.587,99.506,3.59949258]
[1770146543746,15.33890672,99.57,99.516,3.59949258]
[1770146543918,40.13489988,99.664,99.533,3.59949258]
[1770146543919,15.33890672,99.6,99.533,3.59949258]
[1770146544122,10.03683721,99.633,99.519,5.36086188]
[1770146544123,15.33890672,99.57,99.539,3.59949258]
[1770146544321,15.33890672,99.55,99.514,3.59949258]
[1770146544629,15.33890672,99.57,99.516,3.59949258]
[1770146545117,35.12892517,99.633,99.525,3.59949258]
[1770146545118,15.33890672,99.58,99.525,3.59949258]
[1770146545319,15.33890672,99.57,99.525,3.59949258]
[1770146545636,15.33890672,99.56,99.525,3.59949258]
[1770146546438,15.33890672,99.55,99.51,3.59949258]
[1770146547138,15.33890672,99.54,99.5,0.2]
[1770146547339,15.33890672,99.55,99.502,3.59949258]
[1770146547717,2.89879017,99.567,99.502,3.59949258]
[1770146547718,15.33890672,99.56,99.502,3.59949258]
[1770146547931,15.33890672,99.55,99.502,3.59949258]
[1770146548131,15.33890672,99.54,99.502,3.59949258]
[1770146548829,15.33890672,99.55,99.502,3.59949258]
[1770146549132,15.33890672,99.55,99.503,10.04994824]
[1770146549344,15.33890672,99.55,99.503,3.59949258]
[1770146549526,15.33890672,99.53,99.5,0.2]
[1770146549726,15.33890672,99.52,99.5,0.2]
[1770146549927,3.51502076,99.54,99.5,0.2]
[1770146549928,15.33890672,99.53,99.5,0.2]
[1770146550143,15.33890672,99.52,99.5,0.2]
[1770146550325,15.33890672,99.52,99.43,80.65824564]
[1770146550326,15.33890672,99.51,99.452,3.59949258]
[1770146550638,15.33890672,99.51,99.467,3.59949258]
[1770146550950,50.57944514,99.607,99.466,10.05366852]
[1770146550951,15.33890672,99.52,99.47,3.59949258]
[1770146551242,15.33890672,99.52,99.45,15.53890672]
[1770146551243,15.33890672,99.49,99.471,3.59949258]
[1770146551421,15.33890672,99.48,99.45,0.2]
[1770146551740,35.16280377,99.537,99.43,0.2]
[1770146551741,3.51502076,99.481,99.43,0.2]
[1770146551933,15.33890672,99.46,99.43,0.2]
[1770146552242,15.33890672,99.47,99.43,0.2]
[1770146552415,15.33890672,99.46,99.43,0.2]
[1770146552638,3.51502076,99.481,99.43,0.2]
[1770146552835,2.40019033,99.489,99.432,3.59949258]
[1770146553139,15.33890672,99.46,99.43,0.2]
[1770146553345,15.33890672,99.45,99.43,0.2]
[1770146553531,15.33890672,99.45,99.402,3.59949258]
[1770146553736,15.33890672,99.44,99.402,3.59949258]
[1770146553969,15.33890672,99.44,99.4,0.2]
[1770146554157,3.51502076,99.451,99.4,3.79949258]
[1770146554158,15.33890672,99.45,99.4,3.79949258]
[1770146554549,15.3790757,99.45,99.402,10.06008144]
[1770146554749,15.3790757,99.45,99.4,3.79949258]
[1770146555047,3.51502076,99.451,99.4,3.79949258]
[1770146555358,3.51502076,99.466,99.402,3.59949258]
[1770146556058,3.51502076,99.466,99.401,10.06026096]
[1770146556059,15.3790757,99.49,99.431,3.59949258]
[1770146556371,15.3790757,99.48,99.431,3.59949258]
[1770146556541,3.51502076,99.489,99.431,3.59949258]
[1770146556743,15.3790757,99.48,99.431,3.59949258]
[1770146556938,3.51502076,99.489,99.431,3.59949258]
[1770146557160,3.51502076,99.504,99.441,3.59949258]
[1770146557358,3.51502076,99.504,99.443,3.59949258]
[1770146557860,15.3790757,99.49,99.443,3.59949258]
[1770146558060,3.51502076,99.499,99.443,3.59949258]
[1770146558565,15.3790757,99.48,99.428,3.59949258]
[1770146558745,15.3790757,99.46,99.428,3.59949258]
[1770146559052,15.3790757,99.46,99.4,15.5790757]
[1770146559053,15.3790757,99.44,99.4,0.2]
[1770146559250,3.51502076,99.449,99.4,0.2]
[1770146559251,15.3790757,99.46,99.403,13.65955112]
[1770146559454,3.51502076,99.465,99.404,3.59949258]
[1770146559640,15.3790757,99.46,99.404,3.59949258]
[1770146559846,26.84,99.483,99.4,0.2]
[1770146559847,18.89409646,99.45,99.4,0.2]
[1770146560045,15.3790757,99.43,99.4,0.2]
[1770146560258,40.19986046,99.503,99.4,0.2]
[1770146560259,15.3790757,99.48,99.411,3.74165415]
[1770146560464,3.51502076,99.482,99.421,3.59949258]
[1770146561253,3.51502076,99.482,99.431,3.59949258]
[1770146561648,10.10622673,99.48,99.431,3.59949258]
[1770146562442,10.10622673,99.47,99.431,3.59949258]
[1770146562647,10.10622673,99.46,99.413,3.59949258]
[1770146562858,3.51502076,99.419,99.352,3.59949258]
[1770146563167,10.10622673,99.39,99.35,10.0653366]
[1770146563354,10.10622673,99.38,99.338,3.59949258]
[1770146563551,10.10622673,99.38,99.303,40.28038308]
[1770146563552,10.10622673,99.36,99.321,3.59949258]
[1770146563752,3.51502076,99.365,99.307,3.59949258]
[1770146563950,3.51502076,99.365,99.311,3.59949258]
[1770146564151,10.10622673,99.38,99.322,3.59949258]
[1770146564355,10.10622673,99.37,99.323,10.06811322]
[1770146564558,10.10622673,99.37,99.322,3.59949258]
[1770146564748,3.51502076,99.379,99.323,3.59949258]
[1770146564948,10.10622673,99.37,99.323,3.59949258]
[1770146565169,26.84,99.394,99.304,3.59949258]
[1770146565170,10.10622673,99.35,99.304,3.59949258]
[1770146565368,10.10622673,99.35,99.306,3.59949258]
[1770146565674,10.10622673,99.35,99.291,3.59949258]
[1770146565675,10.10622673,99.32,99.291,3.59949258]
[1770146565862,10.10622673,99.32,99.275,3.59949258]
[1770146566067,10.10622673,99.33,99.275,3.59949258]
[1770146566261,10.10622673,99.33,99.284,10.07210447]
[1770146566659,10.10622673,99.33,99.279,10.0726033]
[1770146566857,3.51412332,99.309,99.254,3.59949258]
[1770146567056,3.31412332,99.279,99.221,3.59949258]
[1770146567278,10.10622673,99.26,99.221,3.59949258]
[1770146567773,10.10622673,99.28,99.226,3.59949258]
[1770146568069,10.10622673,99.27,99.22,0.2]
[1770146568263,10.10622673,99.25,99.22,0.2]
[1770146568474,10.10622673,99.24,99.22,0.2]
[1770146568677,10.10622673,99.25,99.22,0.2]
[1770146568850,3.2926877,99.253,99.22,0.2]
[1770146569051,10.10622673,99.25,99.22,0.2]
[1770146569656,10.10622673,99.24,99.22,0.2]
[1770146569983,10.10622673,99.23,99.22,0.2]
[1770146570193,10.10622673,99.23,99.176,3.59949258]
[1770146570395,10.10622673,99.23,99.12,306.6]
[1770146570396,10.10622673,99.19,99.143,3.59949258]
[1770146570684,26.88,99.23,99.171,3.5292693]
[1770146570685,10.10622673,99.23,99.171,3.5292693]
[1770146571051,10.10622673,99.24,99.191,3.5292693]
[1770146571467,10.10622673,99.23,99.191,3.5292693]
[1770146571972,10.10622673,99.25,99.192,10.08145818]
[1770146572157,10.10622673,99.24,99.193,3.5292693]
[1770146572679,10.10622673,99.22,99.178,3.5292693]
[1770146573179,10.10622673,99.21,99.178,3.5292693]
[1770146573367,3.04639904,99.241,99.179,10.08273888]
[1770146573673,10.10622673,99.22,99.179,10.08273888]
[1770146573970,10.10622673,99.21,99.178,3.5292693]
[1770146574179,10.10622673,99.2,99.159,3.26700968]
[1770146574352,10.10622673,99.18,99.151,10.0855321]
[1770146574556,10.10622673,99.19,99.151,10.0855321]
[1770146574757,26.88,99.214,99.141,3.26700968]
[1770146574954,10.10622673,99.19,99.141,3.26700968]